bitfinex/quotes_BTCUSD_20251117
["timestamp","ask_amount","ask_price","bid_price","bid_amount"]
[1763344754601,0.08603177,95020.0,95019.0,0.00113291]
[1763344755600,0.57783177,95020.0,95019.0,0.00213291]
[1763344755953,0.50784,95020.0,95019.0,0.00213291]
[1763344756175,0.50784,95020.0,95019.0,0.00113291]
[1763344756555,0.4918,95020.0,95019.0,0.00113291]
[1763344756755,0.52999,95020.0,95019.0,0.00013291]
[1763344757254,0.50723,95020.0,95019.0,0.00013291]
[1763344758406,0.52376093,95020.0,95019.0,0.00013291]
[1763344758920,0.54292217,95020.0,95019.0,0.00013291]
[1763344759719,0.37412217,95020.0,95019.0,0.00013291]
[1763344759923,0.33953093,95020.0,95019.0,0.00013291]
[1763344763355,0.37772093,95020.0,95019.0,0.00013291]
[1763344764192,0.33953093,95020.0,95019.0,0.00013291]
[1763344765522,0.50833093,95020.0,95019.0,0.00013291]
[1763344766011,0.42393093,95020.0,95019.0,0.00013291]
[1763344766218,0.38420002,95020.0,95019.0,0.00013291]
[1763344767709,0.39963002,95020.0,95019.0,0.00013291]
[1763344768145,0.33953093,95020.0,95019.0,0.00013291]
[1763344768771,0.323,95020.0,95019.0,0.00013291]
[1763344769421,0.323,95020.0,95019.0,0.10013291]
[1763344771339,0.36119,95020.0,95019.0,0.10013291]
[1763344771553,0.36119,95020.0,95019.0,0.00013291]
[1763344771766,0.399341,95020.0,95019.0,0.00013291]
[1763344771974,0.41587205,95020.0,95019.0,0.00013291]
[1763344775488,0.58467205,95020.0,95019.0,0.00013291]
[1763344775859,0.00999999,95010.0,94995.0,0.00582]
[1763344776067,0.36978748,95005.0,94995.0,0.00582]
[1763344776272,0.39951385,95004.0,94995.0,0.00582]
[1763344778733,0.39951385,95004.0,94995.0,0.00682]
[1763344779136,0.07651385,95004.0,94995.0,0.00682]
[1763344779314,0.323,95004.0,94995.0,0.00682]
[1763344779922,0.01135,94996.0,94995.0,0.001]
[1763344780142,0.02678,94996.0,94995.0,0.001]
[1763344780300,0.04954,94996.0,94995.0,0.001]
[1763344780703,0.04954,94996.0,94988.0,0.00739]
[1763344781110,0.02248368,94995.0,94988.0,0.00739]
[1763344781310,0.005954,94995.0,94988.0,0.00739]
[1763344781769,0.028714,94995.0,94988.0,0.00739]
[1763344782317,0.028714,94995.0,94984.0,0.00024846]
[1763344782318,0.02678,94989.0,94984.0,0.00024846]
[1763344782509,0.02678,94989.0,94988.0,0.001]
[1763344782982,0.02276,94994.0,94988.0,0.002]
[1763344783189,0.005954,94995.0,94988.0,0.001]
[1763344783391,0.01135,94989.0,94988.0,0.001]
[1763344783800,0.01135,94989.0,94984.0,0.00024846]
[1763344783990,0.01135,94989.0,94988.0,0.001]
[1763344784796,0.01135,94989.0,94988.0,0.002]
[1763344785019,0.005954,94995.0,94988.0,0.002]
[1763344785228,0.07719686,94994.0,94988.0,0.002]
[1763344785428,0.0844,94993.0,94988.0,0.002]
[1763344785632,0.323,94992.0,94988.0,0.002]
[1763344785780,0.323,94992.0,94988.0,0.001]
[1763344786404,0.323,94992.0,94991.0,0.01624]
[1763344786616,0.323,94999.0,94991.0,0.04077]
[1763344786815,0.02417714,94998.0,94991.0,0.04077]
[1763344787103,0.323,94999.0,94991.0,0.04077]
[1763344787104,0.323,94999.0,94992.0,0.00582]
[1763344787534,0.33299999,95000.0,94992.0,0.00582]
[1763344787743,0.01196,94999.0,94992.0,0.00582]
[1763344788128,0.33299999,95000.0,94992.0,0.00582]
[1763344788129,0.00999999,95000.0,94992.0,0.00582]
[1763344788331,0.00999999,95000.0,94992.0,0.10582]
[1763344788559,0.04163375,94999.0,94992.0,0.10582]
[1763344789287,0.05359375,94999.0,94992.0,0.10582]
[1763344789695,0.05359375,94999.0,94992.0,0.101]
[1763344789911,0.05359375,94999.0,94992.0,0.1]
[1763344790105,0.01649,94993.0,94992.0,0.101]
[1763344790306,0.02695737,94993.0,94992.0,0.102]
[1763344790509,0.02695737,94993.0,94992.0,0.101]
[1763344790710,0.02695737,94993.0,94992.0,0.1]
[1763344791072,0.01649,94993.0,94992.0,0.1]
[1763344791480,0.37659375,94999.0,94992.0,0.09846853]
[1763344791704,0.40118375,94999.0,94992.0,0.09846853]
[1763344791910,0.37659375,94999.0,94992.0,0.09946853]
[1763344792255,0.01649,94993.0,94992.0,0.101]
[1763344792442,0.0609104,94993.0,94992.0,0.101]
[1763344792608,0.0855004,94993.0,94992.0,0.102]
[1763344792808,0.0855004,94993.0,94992.0,0.101]
[1763344793018,0.01649,94993.0,94992.0,0.1]
[1763344793222,0.33953026,94998.0,94992.0,0.1]
[1763344793826,0.01653026,94998.0,94992.0,0.101]
[1763344794185,0.01653026,94998.0,94992.0,0.102]
[1763344794594,0.01653026,94998.0,94997.0,0.1]
[1763344794768,0.09747641,94998.0,94997.0,0.1]
[1763344794998,0.43696641,94998.0,94997.0,0.1]
[1763344795200,0.35602026,94998.0,94997.0,0.1]
[1763344795413,0.38061026,94998.0,94997.0,0.1]
[1763344795584,0.54941026,94998.0,94997.0,0.1]
[1763344800546,0.33953026,94998.0,94997.0,0.1]
[1763344800868,0.01653026,94998.0,94997.0,0.11624]
[1763344801156,0.01653026,94998.0,94997.0,0.14077]
[1763344801670,0.01013353,95010.0,94997.0,0.14077]
[1763344801671,0.00013354,95010.0,94997.0,0.14077]
[1763344801878,0.00013354,95010.0,95009.0,0.02442]
[1763344802230,0.00013354,95010.0,95009.0,0.04895]
[1763344803058,0.00013354,95010.0,95009.0,0.14895]
[1763344803433,0.00013354,95010.0,95009.0,0.14995]
[1763344804036,0.00013354,95010.0,95009.0,0.14895]
[1763344804377,0.00013354,95010.0,95009.0,0.22471974]
[1763344804584,0.00013354,95010.0,95009.0,0.14895]
[1763344804775,0.00013354,95010.0,95009.0,0.15095]
[1763344805491,0.08453354,95010.0,95009.0,0.14995]
[1763344805897,0.08453354,95010.0,95009.0,0.15095]
[1763344806123,0.08453354,95010.0,95009.0,0.15295]
[1763344806840,0.08453354,95010.0,95009.0,0.15095]
[1763344807197,0.08453354,95010.0,95009.0,0.22667678]
[1763344807389,0.08453354,95010.0,95009.0,0.22867678]
[1763344807594,0.08453354,95010.0,95009.0,0.15295]
[1763344809315,0.08453354,95010.0,95009.0,0.22860833]
[1763344810073,0.00013354,95010.0,95009.0,0.24636874]
[1763344810827,0.00013354,95010.0,95009.0,0.34636874]
[1763344811091,0.00013354,95010.0,95009.0,0.29636874]
[1763344811342,0.00013354,95010.0,95009.0,2.34236874]
[1763344811548,0.00013354,95010.0,95009.0,2.34412825]
[1763344811699,0.00013354,95010.0,95009.0,2.34612825]
[1763344812261,0.00013354,95010.0,95009.0,2.34412825]
[1763344812459,0.00013354,95010.0,95009.0,2.34612825]
[1763344813469,0.00013354,95010.0,95009.0,2.24612825]
[1763344814195,0.00013354,95010.0,95009.0,2.34612825]
[1763344814415,0.00013354,95010.0,95009.0,2.41666187]
[1763344814759,0.00013354,95010.0,95009.0,2.42166187]
[1763344815174,0.00013354,95010.0,95009.0,2.34612825]
[1763344815534,0.08453354,95010.0,95009.0,2.34612825]
[1763344816379,0.08453354,95010.0,95009.0,0.25270951]
[1763344816584,0.08453354,95010.0,95009.0,0.1415451]
[1763344817381,0.08453354,95010.0,95009.0,0.1395451]
[1763344817515,0.08453354,95010.0,95009.0,0.1365451]
[1763344817723,0.08453354,95010.0,95009.0,0.1385451]
[1763344817918,0.08453354,95010.0,95009.0,0.1405451]
[1763344819896,0.08453354,95010.0,95009.0,0.1616651]
[1763344820173,0.08453354,95010.0,95009.0,0.1405451]
[1763344820822,0.00013354,95010.0,95009.0,0.18396384]
[1763344822001,0.00013354,95010.0,95009.0,0.18196384]
[1763344822404,0.00013354,95010.0,95009.0,0.18396384]
[1763344823149,0.00013354,95010.0,95009.0,0.18196384]
[1763344823353,0.00013354,95010.0,95009.0,0.18396384]
[1763344825596,0.08453354,95010.0,95009.0,0.18396384]
[1763344826203,0.08453354,95010.0,95009.0,0.1405451]
[1763344826825,0.08453354,95010.0,95009.0,0.1385451]
[1763344827541,0.08453354,95010.0,95009.0,0.1405451]
[1763344828482,0.08453354,95010.0,95009.0,0.21607872]
[1763344829234,0.08453354,95010.0,95009.0,0.1405451]
[1763344829844,0.08453354,95010.0,95009.0,0.21627429]
[1763344830050,0.08453354,95010.0,95009.0,0.1405451]
[1763344831054,0.00013354,95010.0,95009.0,0.1405451]
[1763344831250,0.00013354,95010.0,95009.0,0.1160151]
[1763344832479,0.00013354,95010.0,95009.0,0.1311851]
[1763344833484,0.00013354,95010.0,95009.0,0.1150151]
[1763344833686,0.01571354,95010.0,95009.0,0.101]
[1763344834029,0.01571354,95010.0,95009.0,0.102]
[1763344834030,0.04021354,95010.0,95009.0,0.102]
[1763344834450,0.04021354,95010.0,95009.0,0.101]
[1763344834772,0.04021354,95010.0,95009.0,0.1579035]
[1763344835015,0.04021354,95010.0,95009.0,0.101]
[1763344835274,0.00013354,95010.0,95009.0,0.101]
[1763344835435,0.49193354,95010.0,95009.0,0.101]
[1763344835745,0.54357689,95010.0,95009.0,0.1]
[1763344835999,0.54357689,95010.0,95009.0,0.102]
[1763344836328,0.54357689,95010.0,95009.0,0.1]
[1763344836516,0.54357689,95010.0,95009.0,0.101]
[1763344836719,0.54357689,95010.0,95009.0,0.102]
[1763344837021,0.49193354,95010.0,95009.0,0.11761]
[1763344839037,0.32313354,95010.0,95009.0,0.11761]
[1763344841694,0.00013354,95010.0,95009.0,0.13478]
[1763344842665,0.00013354,95010.0,95009.0,0.13378]
[1763344842890,0.01665987,95010.0,95009.0,0.13278]
[1763344843060,0.00013354,95010.0,95009.0,0.13378]
[1763344843251,0.00013354,95010.0,95009.0,0.13478]
[1763344843446,0.00013354,95010.0,95009.0,0.13278]
[1763344843725,0.00013354,95010.0,95009.0,0.13478]
[1763344844009,0.00013354,95010.0,95009.0,0.13678]
[1763344845395,0.08453354,95010.0,95009.0,0.13678]
[1763344846594,0.00013354,95010.0,95009.0,0.13678]
[1763344851858,0.00013354,95010.0,95009.0,0.21251691]
[1763344852306,0.00013354,95010.0,95009.0,0.13478]
[1763344852733,0.00013354,95010.0,95009.0,0.13378]
[1763344853182,0.00013354,95010.0,95009.0,0.13478]
[1763344854693,0.00013354,95010.0,95009.0,0.13378]
[1763344854811,0.00013354,95010.0,95009.0,0.13278]
[1763344855011,0.00013354,95010.0,95009.0,0.13578]
[1763344855462,0.08453354,95010.0,95009.0,0.13478]
[1763344855842,0.08453354,95010.0,95009.0,0.13678]
[1763344856776,0.10105902,95010.0,95009.0,0.13678]
[1763344857021,0.08453354,95010.0,95009.0,0.13678]
[1763344857460,0.36949822,95020.0,95019.0,0.01536]
[1763344857712,0.36949822,95029.0,95019.0,0.01536]
[1763344858150,0.36949822,95029.0,95020.0,0.01717]
[1763344858388,0.36949822,95029.0,95028.0,0.02118]
[1763344858623,0.00999999,95030.0,95028.0,0.03835]
[1763344858835,0.00999999,95030.0,95029.0,0.01536]
[1763344859228,0.00999999,95030.0,95029.0,0.03253]
[1763344859671,0.323,95039.0,95029.0,0.03253]
[1763344859877,0.32313344,95039.0,95029.0,0.03253]
[1763344860296,0.32313344,95039.0,95038.0,0.01536]
[1763344860506,0.00013344,95039.0,95038.0,0.01536]
[1763344860715,0.00013344,95039.0,95038.0,0.03253]
[1763344861351,0.00013344,95039.0,95029.0,0.001]
[1763344861565,0.69263166,95039.0,95038.0,0.101]
[1763344861782,0.37282966,95039.0,95038.0,0.101]
[1763344861993,0.39705966,95039.0,95038.0,0.102]
[1763344862415,0.39705966,95039.0,95038.0,0.1]
[1763344862622,0.37617344,95039.0,95038.0,0.101]
[1763344862848,0.35194344,95039.0,95038.0,0.101]
[1763344863053,0.32313344,95039.0,95038.0,0.101]
[1763344863276,0.32313344,95039.0,95038.0,0.13353]
[1763344863535,0.32313344,95039.0,95038.0,0.101]
[1763344864005,0.32313344,95039.0,95038.0,0.1]
[1763344864006,0.37205678,95039.0,95038.0,0.1]
[1763344864209,0.35544678,95039.0,95038.0,0.101]
[1763344864345,0.32313344,95039.0,95038.0,0.101]
[1763344865514,0.49193344,95039.0,95038.0,0.101]
[1763344865717,0.49193344,95039.0,95038.0,0.102]
[1763344865919,0.49193344,95039.0,95038.0,0.13453]
[1763344866120,0.40753344,95039.0,95038.0,0.13453]
[1763344866317,0.32313344,95039.0,95038.0,0.13453]
[1763344866907,0.32313344,95039.0,95038.0,0.13353]
[1763344868103,0.32313344,95039.0,95038.0,0.13453]
[1763344868303,0.32313344,95039.0,95038.0,0.11736]
[1763344868515,0.35544678,95039.0,95038.0,0.11736]
[1763344868709,0.32313344,95039.0,95038.0,0.11736]
[1763344870291,0.32313344,95039.0,95038.0,0.13253]
[1763344870413,0.3396574,95039.0,95038.0,0.13353]
[1763344870613,0.32313344,95039.0,95038.0,0.13353]
[1763344870846,0.32313344,95039.0,95038.0,0.13253]
[1763344871062,0.32313344,95039.0,95038.0,0.13353]
[1763344871243,0.32313344,95039.0,95038.0,0.13453]
[1763344873352,0.32313344,95039.0,95038.0,0.11736]
[1763344875440,0.49193344,95039.0,95038.0,0.11736]
[1763344878039,0.49193344,95039.0,95038.0,0.13453]
[1763344878581,0.08453344,95039.0,95038.0,0.13453]
[1763344879596,0.08453344,95039.0,95038.0,0.13353]
[1763344880196,0.08453344,95039.0,95038.0,0.13453]
[1763344880400,0.08453344,95039.0,95038.0,0.13353]
[1763344880804,0.08453344,95039.0,95038.0,0.13453]
[1763344881375,0.00013344,95039.0,95038.0,0.13453]
[1763344883970,0.01665682,95039.0,95038.0,0.13453]
[1763344884353,0.00013344,95039.0,95038.0,0.13453]
[1763344885552,0.16885344,95039.0,95038.0,0.13453]
[1763344886149,0.16885344,95039.0,95038.0,0.13253]
[1763344886351,0.16885344,95039.0,95038.0,0.11611]
[1763344886727,0.08449344,95039.0,95038.0,0.11711]
[1763344887104,0.08449344,95039.0,95038.0,0.13428]
[1763344887310,0.08449344,95039.0,95038.0,0.11611]
[1763344887513,0.10101614,95039.0,95038.0,0.13428]
[1763344888293,0.10101614,95039.0,95038.0,0.13328]
[1763344888546,0.10101614,95039.0,95038.0,0.13428]
[1763344888719,0.01665614,95039.0,95038.0,0.102]
[1763344889138,0.01665614,95039.0,95038.0,0.11711]
[1763344891251,0.01665614,95039.0,95038.0,0.13428]
[1763344891818,0.01665614,95039.0,95038.0,0.11211]
[1763344892022,0.01665614,95039.0,95038.0,0.13428]
[1763344892425,0.01665614,95039.0,95038.0,0.11711]
[1763344895462,0.18537614,95039.0,95038.0,0.11711]
[1763344895907,0.20391375,95039.0,95038.0,0.11711]
[1763344897779,0.20391375,95039.0,95038.0,0.13428]
[1763344897980,0.18739105,95039.0,95038.0,0.13428]
[1763344898627,0.18739105,95039.0,95038.0,0.11711]
[1763344899920,0.00013344,95039.0,95038.0,0.13428]
[1763344900084,0.00013344,95039.0,95038.0,0.102]
[1763344900725,0.00013344,95039.0,95038.0,0.101]
[1763344900926,0.00013344,95039.0,95038.0,0.1]
[1763344901266,0.01665687,95039.0,95038.0,0.102]
[1763344901469,0.01665687,95039.0,95038.0,0.1]
[1763344901470,0.05623687,95039.0,95038.0,0.1]
[1763344901623,0.06303956,95039.0,95038.0,0.1]
[1763344901848,0.07482956,95039.0,95038.0,0.08531991]
[1763344902049,0.07482956,95039.0,95038.0,0.002]
[1763344902053,0.49255858,95039.0,95038.0,0.002]
[1763344902256,0.00499999,95010.0,94992.0,0.01164]
[1763344902453,0.323,95009.0,94992.0,0.01164]
[1763344902652,0.0230353,95008.0,94992.0,0.01164]
[1763344903073,0.0230353,95008.0,94994.0,0.02489]
[1763344903479,0.0230353,95008.0,94997.0,0.00595354]
[1763344904681,0.33166,95009.0,94997.0,0.00595354]
[1763344904682,0.323,95009.0,94998.0,0.02489]
[1763344905068,0.00499999,95010.0,95008.0,0.02621]
[1763344905275,0.32799999,95010.0,95009.0,0.01511]
[1763344905496,0.323,95009.0,95008.0,0.0111]
[1763344906299,0.323,95009.0,95008.0,0.02698]
[1763344906506,0.04968,95009.0,95008.0,0.0111]
[1763344906861,0.1688,95010.0,95008.0,0.0121]
[1763344907259,0.03916,95009.0,95008.0,0.001]
[1763344908111,0.03916,95009.0,95008.0,0.002]
[1763344908669,0.03916,95009.0,95008.0,0.001]
[1763344908860,0.03916,95009.0,94997.0,0.00013354]
[1763344909054,0.01310215,95020.0,94997.0,0.00013354]
[1763344909055,0.02181,94998.0,94997.0,0.00013354]
[1763344909408,0.04506,94998.0,94997.0,0.00013354]
[1763344910015,0.04506,94998.0,94997.0,0.10013354]
[1763344910427,0.05064368,94998.0,94997.0,0.10013354]
[1763344910893,0.04506,94998.0,94997.0,0.10013354]
[1763344911520,0.06158995,94998.0,94997.0,0.10013354]
[1763344911829,0.04506,94998.0,94997.0,0.10013354]
[1763344912171,0.0059,94998.0,94997.0,0.10013354]
[1763344912845,0.02197371,95004.0,94997.0,0.10013354]
[1763344913046,0.0113,95004.0,94997.0,0.10013354]
[1763344913438,0.02325,95003.0,94997.0,0.10013354]
[1763344913641,0.0113,95004.0,94997.0,0.10013354]
[1763344913838,0.323,95006.0,94998.0,0.01158]
[1763344914846,0.01652903,95005.0,94998.0,0.01158]
[1763344915206,0.02721,94999.0,94998.0,0.1]
[1763344915563,0.54226,94999.0,94998.0,0.1]
[1763344915811,0.5137389,94999.0,94998.0,0.1]
[1763344916878,0.4293389,94999.0,94998.0,0.1]
[1763344917107,0.4293389,94999.0,94998.0,0.101]
[1763344917317,0.0867226,94999.0,94998.0,0.101]
[1763344917722,0.0867226,94999.0,94998.0,0.1]
[1763344918328,0.0308437,94999.0,94998.0,0.1]
[1763344918643,0.07426244,94999.0,94997.0,0.10013354]
[1763344918851,0.03916,94998.0,94997.0,0.00013354]
[1763344919367,0.40557874,94998.0,94997.0,0.00013354]
[1763344919574,0.47659089,94998.0,94997.0,0.00013354]
[1763344919953,0.49610494,94998.0,94997.0,0.00013354]
[1763344920394,0.42509279,94998.0,94997.0,0.00013354]
[1763344921473,0.42609279,94998.0,94997.0,0.00013354]
[1763344922633,0.42609279,94998.0,94984.0,0.00024846]
[1763344922634,0.04341874,94989.0,94984.0,0.00024846]
[1763344922769,0.06955874,94985.0,94984.0,0.00024846]
[1763344923143,0.00444215,94950.0,94930.0,0.0004]
[1763344923252,0.00444215,94950.0,94931.0,0.01158]
[1763344923253,0.01591,94943.0,94931.0,0.01158]
[1763344923456,0.00905,94939.0,94931.0,0.01158]
[1763344923878,0.00905,94946.0,94931.0,0.01158]
[1763344924263,0.00905,94946.0,94938.0,0.00519516]
[1763344924670,0.00905,94946.0,94938.0,0.00619516]
[1763344925074,0.00905,94946.0,94945.0,0.1]
[1763344925512,0.51746718,94946.0,94945.0,0.1]
[1763344925739,0.50093,94946.0,94945.0,0.1]
[1763344926359,0.59153222,94946.0,94945.0,0.1]
[1763344926572,0.59153222,94946.0,94938.0,0.00519516]
[1763344926573,0.323,94945.0,94938.0,0.00519516]
[1763344926772,0.02496,94939.0,94938.0,0.00519516]
[1763344927134,0.04821,94939.0,94938.0,0.00519516]
[1763344927335,0.09138022,94939.0,94938.0,0.00519516]
[1763344927963,0.04821,94939.0,94938.0,0.00519516]
[1763344928163,0.05890071,94939.0,94938.0,0.00519516]
[1763344928524,0.07543955,94939.0,94938.0,0.00519516]
[1763344929246,0.09490541,94939.0,94938.0,0.00519516]
[1763344929671,0.0360047,94939.0,94938.0,0.00646542]
[1763344929870,0.01653884,94939.0,94938.0,0.04583542]
[1763344930264,0.00905,94975.0,94938.0,0.04583542]
[1763344930265,0.00444215,94960.0,94938.0,0.04583542]
[1763344930469,0.00444215,94960.0,94959.0,0.00069024]
[1763344930681,0.00444215,94960.0,94959.0,0.02815024]
[1763344930930,0.00444215,94960.0,94959.0,0.05164024]
[1763344931859,0.00905,94980.0,94959.0,0.15264024]
[1763344931860,0.00444215,94970.0,94959.0,0.15264024]
[1763344932077,0.01949398,94969.0,94960.0,0.02349]
[1763344932290,0.01949398,94968.0,94960.0,0.02349]
[1763344932494,0.01949398,94967.0,94960.0,0.02349]
[1763344932707,0.01949398,94966.0,94960.0,0.02349]
[1763344932902,0.01949398,94965.0,94960.0,0.02349]
[1763344933106,0.00444215,94970.0,94969.0,0.01158]
[1763344933342,0.02394263,94970.0,94969.0,0.01158]
[1763344934099,0.02394263,94970.0,94969.0,0.01258]
[1763344934300,0.01950048,94970.0,94969.0,0.15195]
[1763344934701,0.01950048,94970.0,94969.0,0.15295]
[1763344935105,0.03603388,94970.0,94969.0,0.102]
[1763344935572,0.52791388,94970.0,94969.0,0.102]
[1763344935718,0.58070527,94970.0,94969.0,0.102]
[1763344936328,0.52791388,94970.0,94969.0,0.11729]
[1763344937261,0.52791388,94970.0,94969.0,0.11770413]
[1763344938305,0.52791388,94970.0,94969.0,0.10241413]
[1763344938830,0.52791388,94970.0,94969.0,0.09741413]
[1763344939033,0.52791388,94970.0,94969.0,0.10141413]
[1763344940293,0.44347388,94970.0,94969.0,0.10141413]
[1763344940880,0.44347388,94970.0,94969.0,0.35141413]
[1763344942715,0.35903388,94970.0,94969.0,0.39223413]
[1763344942961,0.03603388,94970.0,94969.0,0.39223413]
[1763344943595,0.0165334,94970.0,94969.0,0.39223413]
[1763344944506,0.0165334,94970.0,94969.0,0.39123413]
[1763344944715,0.0165334,94970.0,94969.0,0.39223413]
[1763344945058,0.0165334,94970.0,94969.0,0.39323413]
[1763344945420,0.1854134,94970.0,94969.0,0.39323413]
[1763344945828,0.1009734,94970.0,94969.0,0.39323413]
[1763344946338,0.1009734,94970.0,94969.0,0.39123413]
[1763344946846,0.1009734,94970.0,94969.0,0.39323413]
[1763344947230,0.0165334,94970.0,94969.0,0.39123413]
[1763344947411,0.0165334,94970.0,94969.0,0.39323413]
[1763344947776,0.0165334,94970.0,94969.0,0.39423413]
[1763344948176,0.0165334,94970.0,94969.0,0.39323413]
[1763344948375,0.0165334,94970.0,94969.0,0.39423413]
[1763344954670,0.0165334,94970.0,94969.0,0.35341413]
[1763344955537,0.0165334,94970.0,94969.0,0.35241413]
[1763344955538,0.1854134,94970.0,94969.0,0.35241413]
[1763344955953,0.1009734,94970.0,94969.0,0.35041413]
[1763344956388,0.1009734,94970.0,94969.0,0.35141413]
[1763344956806,0.0165334,94970.0,94969.0,0.35241413]
[1763344957187,0.0165334,94970.0,94969.0,0.35141413]
[1763344957595,0.0165334,94970.0,94969.0,0.35241413]
[1763344959094,0.0165334,94970.0,94969.0,0.36845413]
[1763344959297,0.0165334,94970.0,94969.0,0.39323413]
[1763344965447,0.1854134,94970.0,94969.0,0.39310537]
[1763344965645,0.1009734,94970.0,94969.0,0.39310537]
[1763344965907,0.0165334,94970.0,94969.0,0.39310537]
[1763344966045,0.0165334,94970.0,94969.0,2.39210537]
[1763344966247,0.0161534,94970.0,94969.0,2.43552411]
[1763344966428,0.01239059,94970.0,94969.0,2.43652411]
[1763344966635,0.01239059,94970.0,94969.0,2.43552411]
[1763344966838,0.00444215,94990.0,94970.0,2.0]
[1763344967042,0.0045755,94990.0,94989.0,0.02752]
[1763344967245,0.0045755,94990.0,94989.0,0.05067]
[1763344967474,0.0045755,94990.0,94984.0,0.01146]
[1763344967935,0.0045755,94990.0,94989.0,0.26606]
[1763344968338,0.00013335,94990.0,94989.0,0.35]
[1763344968900,0.03942335,94990.0,94989.0,0.35]
[1763344969099,0.00013335,94990.0,94989.0,0.351]
[1763344969698,0.01666507,94990.0,94989.0,0.352]
[1763344969905,0.01666507,94990.0,94989.0,0.351]
[1763344970114,0.01666507,94990.0,94989.0,0.35]
[1763344971866,0.05595507,94990.0,94989.0,0.35]
[1763344972335,0.03266507,94990.0,94989.0,0.35]
[1763344972733,0.01666507,94990.0,94989.0,0.35]
[1763344974545,0.05595507,94990.0,94989.0,0.35]
[1763344974899,0.05595507,94990.0,94989.0,0.25]
[1763344975459,0.46339507,94990.0,94989.0,0.25]
[1763344977455,0.44010507,94990.0,94989.0,0.25]
[1763344977692,0.42410507,94990.0,94989.0,0.25]
[1763344978602,0.42410507,94990.0,94989.0,0.26606]
[1763344979432,0.42410507,94990.0,94989.0,0.351]
[1763344979829,0.42410507,94990.0,94989.0,0.352]
[1763344980251,0.42410507,94990.0,94989.0,0.34812949]
[1763344980471,0.00013335,94990.0,94989.0,0.38733949]
[1763344980655,0.01197,94999.0,94989.0,0.36418949]
[1763344980656,0.0067824,94999.0,94989.0,0.36418949]
[1763344981042,0.0067824,94999.0,94989.0,0.34812949]
[1763344981463,0.0067824,94999.0,94989.0,0.34712949]
[1763344981872,0.0067824,94999.0,94998.0,0.35]
[1763344982277,0.02329,95005.0,94998.0,0.35]
[1763344982278,0.34629,95009.0,94998.0,0.35]
[1763344982563,0.34629,95009.0,94998.0,0.25]
[1763344982564,0.323,95009.0,94998.0,0.25]
[1763344982764,0.37415279,95010.0,94998.0,0.25]
[1763344982997,0.00679,94999.0,94998.0,0.25]
[1763344983194,0.02279,94999.0,94998.0,0.25]
[1763344983550,0.04608,94999.0,94998.0,0.35]
[1763344983753,0.04608,94999.0,94998.0,0.25]
[1763344984760,0.08949874,94999.0,94998.0,0.25]
[1763344985236,0.09844861,94999.0,94998.0,0.25]
[1763344985398,0.59032861,94999.0,94998.0,0.25]
[1763344985741,0.00444215,94980.0,94971.0,0.0002302]
[1763344985879,0.02838,94972.0,94971.0,0.00036355]
[1763344986282,0.05167,94972.0,94971.0,0.00036355]
[1763344986931,0.05167,94972.0,94971.0,0.10036355]
[1763344987142,0.05167,94972.0,94971.0,0.00036355]
[1763344987349,0.09508874,94972.0,94971.0,0.00036355]
[1763344987535,0.42753975,94972.0,94971.0,0.00036355]
[1763344990397,0.41803088,94972.0,94971.0,0.00036355]
[1763344992339,0.41803088,94972.0,94963.0,0.1]
[1763344992340,0.05941874,94964.0,94963.0,0.09660074]
[1763344992544,0.05941874,94964.0,94920.0,0.00707]
[1763344992545,0.36641874,94963.0,94955.0,0.1]
[1763344992752,0.39609483,94963.0,94955.0,0.00044508]
[1763344992980,0.06346874,94956.0,94955.0,0.00044508]
[1763344993180,0.08675874,94956.0,94955.0,0.00044508]
[1763344994066,0.42629712,94956.0,94955.0,0.00044508]
[1763344994277,0.40975874,94956.0,94955.0,0.00044508]
[1763344995428,0.57863874,94956.0,94955.0,0.00044508]
[1763344997339,0.59517694,94956.0,94955.0,0.00044508]
[1763344998374,0.59517694,94956.0,94955.0,0.0008869]
[1763344998573,0.42629694,94956.0,94955.0,0.0008869]
[1763345003036,0.20795694,94956.0,94955.0,0.0515869]
[1763345003231,0.0165382,94956.0,94955.0,2.0130069]
[1763345003444,0.00444215,94970.0,94956.0,2.0]
[1763345003649,0.00444215,94970.0,94960.0,0.61703355]
[1763345003852,0.00444215,94990.0,94961.0,0.323]
[1763345004283,0.00444215,94990.0,94962.0,0.05442395]
[1763345004284,0.00444215,94980.0,94962.0,0.05442395]
[1763345004488,0.00444215,94980.0,94956.0,0.04341874]
[1763345004709,0.01237,94979.0,94956.0,0.04441874]
[1763345004904,0.01237,94979.0,94956.0,0.04341874]
[1763345005053,0.01237,94979.0,94962.0,0.1]
[1763345005265,0.00444215,94980.0,94962.0,0.1]
[1763345005488,0.16888,94979.0,94969.0,0.61703355]
[1763345005659,0.16888,94979.0,94972.0,0.04341874]
[1763345005864,0.16888,94979.0,94977.0,2.0]
[1763345006410,0.16888,94979.0,94971.0,0.04341874]
[1763345006954,0.16888,94979.0,94977.0,0.1]
[1763345007356,0.16888,94979.0,94977.0,0.102]
[1763345007554,0.08444,94979.0,94977.0,0.101]
[1763345007756,0.08444,94978.0,94977.0,0.14441874]
[1763345007964,0.01652989,94986.0,94977.0,0.14441874]
[1763345008163,0.01652989,94986.0,94981.0,0.04341874]
[1763345008363,0.01652989,94986.0,94985.0,0.04341874]
[1763345008571,0.00444215,95020.0,94986.0,2.0]
[1763345008770,0.00444215,95020.0,95010.0,0.61703355]
[1763345009113,0.00444215,95020.0,95001.0,2.0]
[1763345009519,0.00457562,95020.0,95001.0,2.0]
[1763345010105,0.00457562,95020.0,95001.0,0.1]
[1763345010337,0.00013347,95020.0,95001.0,0.101]
[1763345010518,0.00457562,95020.0,95001.0,0.101]
[1763345010922,0.00457562,95020.0,95001.0,0.1]
[1763345011276,0.00013347,95020.0,95002.0,2.04341874]
[1763345011475,0.00013347,95020.0,95010.0,0.61703355]
[1763345011625,0.00013347,95020.0,95002.0,0.04341874]
[1763345011797,0.00457562,95020.0,95001.0,0.102]
[1763345012004,0.00444215,95010.0,95001.0,0.102]
[1763345012250,0.00444215,95010.0,95001.0,0.101]
[1763345012622,0.00444215,95010.0,95002.0,0.001]
[1763345012824,0.01652779,95008.0,95002.0,0.001]